[Event "44th Chess Olympiad Women 2022"]
[Site "Chennai"]
[Date "2022.08.03"]
[Round "6.14"]
[White "Mrvova, Alena"]
[Black "Bail, Ellen Larissa"]
[Result "1-0"]
[WhiteElo "2165"]
[BlackElo "1892"]
[Annotator "NA RC"]
[PlyCount "61"]
[EventDate "2022.??.??"]
[TimeControl "60"]

1. e4 {[%emt 0:00:10]} e6 {[%emt 0:00:08]} 2. d4 {[%emt 0:00:43]} d5 {[%emt 0:
00:00]} 3. Nd2 {[%emt 0:00:08]} c5 {[%emt 0:00:26]} 4. exd5 {[%emt 0:02:25]}
Qxd5 {[%emt 0:00:13]} 5. Ngf3 {[%emt 0:00:31]} cxd4 {[%emt 0:00:17]} 6. Bc4 {
[%emt 0:00:52]} Qd6 {[%emt 0:00:43]} 7. O-O {[%emt 0:00:28]} Nf6 {[%emt 0:00:
00]} 8. Nb3 {[%emt 0:00:20]} Nc6 {[%emt 0:00:39]} 9. Nbxd4 {[%emt 0:00:50]}
Nxd4 {[%emt 0:00:37]} 10. Nxd4 {[%emt 0:00:53]} a6 {[%emt 0:00:27]} 11. c3 {
[%emt 0:02:01]} Qc7 {[%emt 0:04:43]} 12. Bb3 {[%emt 0:05:57]} Bd7 {[%emt 0:00:
00]} 13. Re1 {[%emt 0:05:27]} O-O-O {[%emt 0:09:00]} 14. Qf3 {[%emt 0:05:24]}
Bd6 {[%emt 0:12:05]} 15. h3 {[%emt 0:04:59]} h6 {[%emt 0:08:16]} 16. Be3 {
[%emt 0:02:53]} Be8 {[%emt 0:09:26]} 17. Rac1 {[%emt 0:05:18]} Nd7 {[%emt 0:00:
00]} 18. c4 {[%emt 0:04:08]} Ne5 {[%emt 0:00:47]} 19. Qe2 {[%emt 0:00:10]} Nc6
{[%emt 0:11:13]} 20. Nb5 {[%emt 0:03:39]} axb5 {[%emt 0:05:49]} 21. cxb5 {
[%emt 0:00:06]} Bb4 {[%emt 0:01:05]} 22. Red1 {[%emt 0:03:21]} Rxd1+ {[%emt 0:
00:00]} 23. Qxd1 {[%emt 0:00:35]} Qd8 {[%emt 0:02:53]} 24. Qe2 {[%emt 0:07:14]}
Kb8 {[%emt 0:05:28]} 25. bxc6 {[%emt 0:00:17]} Bxc6 {[%emt 0:00:11]} 26. Bf4+ {
[%emt 0:00:41]} Ka7 {[%emt 0:03:52]} 27. Qe5 {[%emt 0:05:12]} Rg8 {[%emt 0:00:
00]} 28. a3 {[%emt 0:00:28]} Ba5 {[%emt 0:09:15]} 29. Rd1 {[%emt 0:00:15]} Bd5
{[%emt 0:00:52]} 30. Bxd5 {[%emt 0:00:14]} g5 {[%emt 0:01:23]} 31. Be3+ {
[%emt 0:00:27]} 1-0

[Event "44th Chess Olympiad Women 2022"]
[Site "Chennai"]
[Date "2022.08.03"]
[Round "6.14"]
[White "Terao, Juliana Sayumi"]
[Black "Sucikova, Svetlana"]
[Result "1-0"]
[WhiteElo "2223"]
[BlackElo "2188"]
[Annotator "RC"]
[PlyCount "95"]
[EventDate "2022.??.??"]
[TimeControl "60"]

1. e4 {[%emt 0:00:05]} c6 {[%emt 0:01:19]} 2. d4 {[%emt 0:00:19]} d5 {[%emt 0:
00:00]} 3. e5 {[%emt 0:00:09]} Bf5 {[%emt 0:00:39]} 4. h4 {[%emt 0:00:27]} h5 {
[%emt 0:01:44]} 5. Bd3 {[%emt 0:00:29]} Bxd3 {[%emt 0:01:06]} 6. Qxd3 {[%emt 0:
00:00]} e6 {[%emt 0:00:24]} 7. Bg5 {[%emt 0:01:06]} Be7 {[%emt 0:01:05]} 8. Nf3
{[%emt 0:00:59]} Nh6 {[%emt 0:01:28]} 9. Nbd2 {[%emt 0:01:43]} Nf5 {[%emt 0:00:
00]} 10. c4 {[%emt 0:04:26]} O-O {[%emt 0:07:49]} 11. Bxe7 {[%emt 0:09:40]}
Qxe7 {[%emt 0:05:28]} 12. g3 {[%emt 0:01:50]} dxc4 {[%emt 0:06:06]} 13. Qxc4 {
[%emt 0:00:15]} Rd8 {[%emt 0:02:05]} 14. O-O {[%emt 0:01:57]} Na6 {[%emt 0:00:
00]} 15. a3 {[%emt 0:11:18]} Qd7 {[%emt 0:04:34]} 16. Nb3 {[%emt 0:07:15]} Qd5
{[%emt 0:00:40]} 17. Qc3 {[%emt 0:00:29]} Qb5 {[%emt 0:09:35]} 18. Rad1 {
[%emt 0:05:18]} Rd7 {[%emt 0:05:28]} 19. Rd2 {[%emt 0:01:57]} Rad8 {[%emt 0:00:
00]} 20. Rfd1 {[%emt 0:00:48]} Qd5 {[%emt 0:06:16]} 21. Nc5 {[%emt 0:03:02]}
Re7 {[%emt 0:02:55]} 22. b4 {[%emt 0:05:13]} Nc7 {[%emt 0:02:23]} 23. a4 {
[%emt 0:03:48]} b6 {[%emt 0:01:10]} 24. Nb3 {[%emt 0:00:53]} Qe4 {[%emt 0:00:
00]} 25. Rd3 {[%emt 0:02:49]} Nd5 {[%emt 0:03:45]} 26. Qd2 {[%emt 0:00:42]}
Red7 {[%emt 0:05:47]} 27. Ng5 {[%emt 0:04:48]} Qg4 {[%emt 0:01:59]} 28. Re1 {
[%emt 0:01:02]} Nh6 {[%emt 0:04:24]} 29. Rf3 {[%emt 0:01:12]} f5 {[%emt 0:00:
00]} 30. exf6 {[%emt 0:02:43]} gxf6 {[%emt 0:00:06]} 31. Re4 {[%emt 0:00:13]}
fxg5 {[%emt 0:04:52]} 32. Rxg4 {[%emt 0:00:08]} hxg4 {[%emt 0:00:08]} 33. Qxg5+
{[%emt 0:01:34]} Kh7 {[%emt 0:00:06]} 34. Rd3 {[%emt 0:00:44]} Rf8 {[%emt 0:00:
00]} 35. Qe5 {[%emt 0:04:22]} Rf5 {[%emt 0:00:07]} 36. Qe4 {[%emt 0:02:34]}
Rdf7 {[%emt 0:00:07]} 37. Rd2 {[%emt 0:00:23]} R7f6 {[%emt 0:00:50]} 38. b5 {
[%emt 0:01:07]} cxb5 {[%emt 0:01:39]} 39. axb5 {[%emt 0:00:05]} Nf7 {[%emt 0:
00:00]} 40. Rc2 {[%emt 0:04:20]} Nd6 {[%emt 0:00:14]} 41. Qxg4 {[%emt 0:31:02]}
Rg6 {[%emt 0:32:07]} 42. Qe2 {[%emt 0:01:52]} Nf4 {[%emt 0:00:00]} 43. Qe1 {
[%emt 0:00:00]} Rxb5 {[%emt 0:00:00]} 44. Nd2 {[%emt 0:00:00]} Rf5 {[%emt 0:00:
00]} 45. Nf3 {[%emt 0:00:00]} Nh3+ {[%emt 0:00:00]} 46. Kg2 {[%emt 0:00:00]}
Nf4+ {[%emt 0:00:00]} 47. Kh2 {[%emt 0:00:00]} Nd5 {[%emt 0:00:00]} 48. Ng5+ {
[%emt 0:00:00]} 1-0

[Event "44th Chess Olympiad Women 2022"]
[Site "Chennai"]
[Date "2022.08.03"]
[Round "6.15"]
[White "Medic, Mirjana"]
[Black "Unuk, Laura"]
[Result "1/2-1/2"]
[WhiteElo "2194"]
[BlackElo "2340"]
[Annotator "TA"]
[PlyCount "87"]
[EventDate "2022.??.??"]
[TimeControl "60"]

{[%evp 15,87,3,2,10,7,-3,10,9,0,0,0,0,0,0,0,0,14,-8,-5,-7,-8,-5,0,0,0,0,0,0,0,
0,2,0,0,-24,0,2,20,0,25,29,29,34,49,49,60,45,60,60,138,147,130,133,114,115,109,
122,126,45,126,127,187,176,210,200,185,171,258,211,216,184,295,281,246,0]} 1.
d4 {[%emt 0:00:02]} Nf6 {[%emt 0:00:06]} 2. c4 {[%emt 0:00:09]} e6 {[%emt 0:00:
00]} 3. Nf3 {[%emt 0:00:06]} b6 {[%emt 0:00:22]} 4. g3 {[%emt 0:00:12]} Ba6 {
[%emt 0:00:26]} 5. b3 {[%emt 0:00:15]} Bb4+ {[%emt 0:00:30]} 6. Bd2 {[%emt 0:
00:00]} Be7 {[%emt 0:00:07]} 7. Bg2 {[%emt 0:00:13]} d5 {[%emt 0:03:46]} 8.
cxd5 {[%emt 0:01:25]} exd5 {[%emt 0:00:47]} 9. O-O {[%emt 0:01:51] E15:
Queen's Indian: 4 g3 sidelines, 4 g3 Ba6 and 4 g3 Bb7 early deviations.} O-O {
[%emt 0:02:19]} 10. Bf4 {[%emt 0:02:59]} Nbd7 {[%emt 0:14:32]} 11. Nc3 {
[%emt 0:05:33] The position is equal.} Rc8 {[%emt 0:02:56]} 12. Ne5 {[%emt 0:
00:00] Nc6 is the strong threat.} c6 {[%emt 0:01:04] [#]} 13. Nd3 $146 {
[%emt 0:02:17]} ({Predecessor:} 13. Rc1 Ba3 14. Rc2 Nxe5 15. Bxe5 Nd7 16. Bf4
Re8 17. Re1 Nf6 18. Bh3 Ra8 19. Nb1 {1-0 (54) Arkell,K (2381)-Tarasova,V (2226)
Chess.com INT 2021}) 13... Re8 {[%emt 0:03:48]} 14. Re1 {[%emt 0:02:45]} Bf8 {
[%emt 0:11:51]} 15. Rc1 {[%emt 0:06:26]} Ne4 {[%emt 0:11:03]} 16. Nxe4 {
[%emt 0:10:56]} dxe4 {[%emt 0:00:18]} 17. Ne5 {[%emt 0:00:05]} Nxe5 {[%emt 0:
00:00]} 18. dxe5 {[%emt 0:00:07]} Bb4 {[%emt 0:00:19]} 19. Qxd8 {[%emt 0:00:47]
} Rexd8 {[%emt 0:01:33]} 20. Red1 {[%emt 0:00:26]} Bxe2 {[%emt 0:04:23]} 21.
Rxd8+ {[%emt 0:00:21]} Rxd8 {[%emt 0:00:04]} 22. Bxe4 {[%emt 0:00:17]} c5 {
[%emt 0:00:27]} 23. Be3 {[%emt 0:06:32]} h6 {[%emt 0:04:47]} 24. f3 {[%emt 0:
00:00]} a5 {[%emt 0:02:04]} 25. Kf2 {[%emt 0:00:52]} Bb5 {[%emt 0:00:49]} 26.
Bc2 {[%emt 0:04:56]} a4 {[%emt 0:07:52]} 27. bxa4 {[%emt 0:01:58]} Bc4 {
[%emt 0:06:45]} 28. Bb3 {[%emt 0:03:47]} Bxb3 {[%emt 0:00:24]} 29. axb3 $14 {
[%emt 0:00:02] Endgame KRB-KRB} Rd3 {[%emt 0:00:06]} 30. Rb1 {[%emt 0:00:18]}
Rc3 {[%emt 0:00:11]} 31. f4 {[%emt 0:00:34]} Kf8 {[%emt 0:00:00]} ({Better is} 
31... f5 $14) 32. Kf3 $1 $16 {[%emt 0:04:18]} Ke7 {[%emt 0:00:00]} 33. Ke4 {
[%emt 0:00:38]} Rc2 {[%emt 0:00:53] Prevents Bd2.} 34. h3 {[%emt 0:02:59]} Rg2
{[%emt 0:00:44]} 35. Kf3 {[%emt 0:00:30]} Rc2 {[%emt 0:00:00]} 36. g4 {[%emt 0:
05:45]} (36. f5 $16) 36... f6 {[%emt 0:00:33]} (36... Rh2 $1 $14) 37. exf6+ $1
{[%emt 0:02:38]} Kxf6 {[%emt 0:00:23]} (37... gxf6 $16 {was worth a try.} 38.
f5 Bd2) 38. Rd1 $18 {[%emt 0:04:20] Black must now prevent Rd6+.} Ke7 {[%emt 0:
00:45] Against Rd6} 39. Rd3 {[%emt 0:00:42]} Rh2 {[%emt 0:00:59]} 40. Ke4 $1 {
[%emt 0:00:35]} Ke8 {[%emt 0:01:38]} (40... g6 {was called for.} 41. g5 (41. f5
g5 $16) 41... hxg5) 41. f5 {[%emt 0:33:45] And now Bf4 would win.} Rxh3 {
[%emt 0:05:15]} 42. Rd6 {[%emt 0:00:00]} Ba5 {[%emt 0:01:48] [#]} (42... Rh4
$142 43. Rxb6 Rxg4+ 44. Kf3 Rh4) 43. Rg6 $1 {[%emt 0:00:00]} Kf7 {[%emt 0:07:
36] [#]} 44. Rd6 $2 {[%emt 0:00:00] Weighted Error Value: White=0.06 (flawless)
/Black=0.18 (very precise)} (44. Bf4 $1 $18 {[%cal Rf4e5]}) 1/2-1/2

[Event "44th Chess Olympiad Women 2022"]
[Site "Chennai"]
[Date "2022.08.03"]
[Round "6.15"]
[White "Radikovic, Anamarija"]
[Black "Janzelj, Lara"]
[Result "1-0"]
[WhiteElo "2099"]
[BlackElo "2215"]
[Annotator "TA"]
[PlyCount "61"]
[EventDate "2022.??.??"]
[TimeControl "60"]

{[%evp 20,61,17,22,22,18,14,17,78,7,26,15,41,18,68,-29,0,-31,0,-73,0,0,0,-58,
-58,-60,675,662,1291,1291,1288,1274,1169,775,29988,29989,29989,29990,29990,
29989,29993,29994,29995,29995]} 1. e4 {[%emt 0:00:02]} e5 {[%emt 0:00:09]} 2.
Nf3 {[%emt 0:00:05]} Nc6 {[%emt 0:00:05]} 3. Bb5 {[%emt 0:00:03]} a6 {[%emt 0:
00:00]} 4. Ba4 {[%emt 0:00:05]} Nf6 {[%emt 0:00:15]} 5. O-O {[%emt 0:00:06]}
Be7 {[%emt 0:00:17]} 6. Re1 {[%emt 0:00:08]} b5 {[%emt 0:00:24]} 7. Bb3 {
[%emt 0:00:05]} d6 {[%emt 0:00:33]} 8. c3 {[%emt 0:00:06]} O-O {[%emt 0:00:10]}
9. h3 {[%emt 0:00:04]} Bb7 {[%emt 0:00:54]} 10. d4 {[%emt 0:00:23]} Nd7 {
[%emt 0:00:14]} 11. Nbd2 {[%emt 0:04:08]} Na5 {[%emt 0:02:17] C92: Closed Ruy
Lopez: 9...Be6, Karpov and Flohr-Zaitsev Variations.} 12. Bc2 {[%emt 0:00:07]}
c5 {[%emt 0:00:15]} 13. Nf1 {[%emt 0:11:44]} Rc8 {[%emt 0:12:54]} (13... exd4
$11 14. cxd4 Nc6) 14. Ng3 {[%emt 0:08:08]} (14. d5 $16) 14... cxd4 {[%emt 0:00:
00]} 15. cxd4 {[%emt 0:00:13]} Qc7 {[%emt 0:02:16] [#]} 16. Nf5 $146 {[%emt 0:
00:00]} ({Predecessor:} 16. Bd3 Bf6 17. Be3 exd4 18. Nxd4 Ne5 19. Rc1 Qd7 20.
Bb1 Nac4 21. f4 Nxe3 22. Rxe3 Rxc1 23. Qxc1 Nc4 24. Rd3 Qd8 25. b3 Qb6 26. bxc4
Bxd4+ {0-1 (42) Santaella Amate,S-Poveda Jimenez,J Malaga 1999}) 16... Rfe8 {
[%emt 0:04:12]} (16... Bf6 $11 17. Re2 exd4) 17. Bb3 {[%emt 0:23:24] White is
more active.} (17. Bb1 $14) 17... Nxb3 {[%emt 0:04:01]} 18. Qxb3 {[%emt 0:00:
00]} exd4 {[%emt 0:03:39]} 19. Ng5 {[%emt 0:07:12]} (19. N3xd4 $11 {keeps the
balance.} Bf6 20. Qg3 Bxd4 21. Nxd4 Bxe4 22. Bf4) 19... Bxg5 {[%emt 0:04:47]} (
{Black should try} 19... d5 $17 {Strongly threatening ...Bf8.} 20. exd5 Bf8 21.
Rxe8 Rxe8) 20. Bxg5 $40 {[%emt 0:00:07] Threatens to win with Rac1. White
attacks.} Bxe4 {[%emt 0:24:08]} (20... Nc5 $2 21. Qg3 f6 22. Bxf6 Nxe4 23. Rxe4
$1 Bxe4 24. Nxg7 $18) 21. Rxe4 {[%emt 0:09:00]} Rxe4 $15 {[%emt 0:01:21]} 22.
Qg3 $1 {[%emt 0:00:05][%cal Yg5d8] Bd8! is the strong threat.} Re6 $2 {[%emt 0:
06:37] [#] Loses the game.} (22... Qc5 $15 23. Nxd6 {[#]} Re6 $1) 23. Bd8 $1
$18 {[%emt 0:02:05][%csl Gf5][%cal Rg3g7]} Qc1+ {[%emt 0:01:40]} (23... g6 24.
Bxc7) 24. Rxc1 {[%emt 0:00:04]} Rxc1+ {[%emt 0:00:03]} 25. Kh2 {[%emt 0:00:05]
[%csl Gf5][%cal Rg3g7]} g6 {[%emt 0:00:18]} 26. Qf4 {[%emt 0:07:45]
Threatening mate with Nh6+.} Rce1 {[%emt 0:08:44]} 27. Nh6+ {[%emt 0:01:20]
White mates.} Kg7 {[%emt 0:00:29]} 28. Qxf7+ {[%emt 0:00:59]} Kxh6 {[%emt 0:00:
05]} 29. Qxd7 {[%emt 0:00:04]} d3 {[%emt 0:01:00]} 30. Qf7 {[%emt 0:00:37]} g5
{[%emt 0:10:19]} 31. Bf6 {[%emt 0:00:00] Weighted Error Value: White=0.30/
Black=0.84} 1-0

[Event "44th Chess Olympiad Women 2022"]
[Site "Chennai"]
[Date "2022.08.03"]
[Round "6.15"]
[White "Urh, Zala"]
[Black "Berke, Ana"]
[Result "0-1"]
[WhiteElo "2321"]
[BlackElo "2163"]
[Annotator "TA"]
[PlyCount "68"]
[EventDate "2022.??.??"]
[TimeControl "60"]

{[%evp 11,68,0,6,0,0,-14,0,-13,-16,-31,75,56,71,72,127,123,131,126,133,133,160,
166,154,93,117,0,0,-88,-88,-79,-79,-89,-82,-82,-79,-85,-83,-96,-79,-127,-120,
-125,-109,-1201,-1165,-1382,-1397,-1331,-1332,-29994,-29995,-29995,-6687,-5785,
-5585,-5485,-2499,-5614,-2600]} 1. d4 {[%emt 0:00:01]} Nf6 {[%emt 0:00:09]} 2.
c4 {[%emt 0:00:31]} e6 {[%emt 0:00:05]} 3. Nc3 {[%emt 0:01:43]} Bb4 {[%emt 0:
00:00]} 4. e3 {[%emt 0:00:23]} O-O {[%emt 0:00:18]} 5. Bd3 {[%emt 0:00:05]} d5
{[%emt 0:00:10]} 6. cxd5 {[%emt 0:00:13]} exd5 {[%emt 0:00:40]} 7. a3 {[%emt 0:
00:00] E48: Nimzo-Indian: Rubinstein: 5 Bd3 d5 including 6 Ne2, but excluding
6 a3.} Bd6 {[%emt 0:00:49]} 8. Qc2 {[%emt 0:01:30]} c6 {[%emt 0:01:50]} 9. Nge2
{[%emt 0:03:42] The position is equal.} Re8 {[%emt 0:01:51]} 10. Bd2 {[%emt 0:
00:00] [#]} Bg4 $146 {[%emt 0:01:32]} (10... b6 $15 {keeps the upper hand.}) ({
Predecessor:} 10... b6 11. f3 c5 12. g4 c4 13. Bf5 Bxf5 14. Qxf5 g6 15. Qg5 Nc6
16. O-O Bf8 {1-0 (58) Firouzja,A (2804)-Dominguez Perez,L (2753) Bucharest 2022
}) 11. f3 $16 {[%emt 0:01:47][%cal Yf2f3,Yf3e4,Ye4e5]} Bh5 {[%emt 0:00:00]} 12.
O-O-O {[%emt 0:14:00]} b5 {[%emt 0:05:24]} ({Better is} 12... Bg6) 13. e4 {
[%emt 0:05:22]} dxe4 {[%emt 0:06:16]} 14. fxe4 {[%emt 0:12:02]} (14. Nxe4 $6
Bg6 $14) 14... b4 {[%emt 0:06:01]} 15. axb4 {[%emt 0:05:39] Threatens to win
with e5.} Bxb4 {[%emt 0:04:40]} 16. e5 {[%emt 0:09:44]} Bxc3 {[%emt 0:00:00]}
17. Bxc3 {[%emt 0:01:02]} ({Don't play} 17. Qxc3 $6 Nd5 18. Qc2 Bxe2 19. Bxe2
Qb6 $11) (17. bxc3 $6 Bg6 $16) (17. Nxc3 $142 Bxd1 18. Rxd1) 17... Nd5 {
[%emt 0:03:54]} 18. Rde1 {[%emt 0:06:39]} ({Only move:} 18. Bxh7+ $16 Kh8 19.
Be4) 18... Bg6 $11 {[%emt 0:04:21]} 19. Ng3 {[%emt 0:09:55]} (19. Bxg6 $1 $11 {
remains equal.} hxg6 20. h4) 19... Na6 $36 {[%emt 0:13:13] [#] aiming for ...
Nab4. Black is really pushing. Pair of Knights!} 20. Bxg6 {[%emt 0:02:37]} hxg6
{[%emt 0:02:32]} ({But not} 20... fxg6 21. Ne4 $11) 21. Ne4 {[%emt 0:06:45]}
Rb8 {[%emt 0:02:55]} 22. Nd6 {[%emt 0:02:35]} Rf8 {[%emt 0:02:53] White must
now prevent ...Nab4.} 23. Rhf1 {[%emt 0:01:10]} Nab4 {[%emt 0:02:42]} 24. Bxb4
{[%emt 0:00:41]} Nxb4 {[%emt 0:00:30] Chess con chili.} 25. Qc4 {[%emt 0:00:27]
} (25. Qe2 $142) 25... Qa5 {[%emt 0:06:27] [#] Hoping for ...Qa1+.} 26. Kb1 {
[%emt 0:06:02][%cal Rf1f7] Prevents Qa1+.} Nd5 {[%emt 0:04:42]} 27. Ne4 {
[%emt 0:01:44] Inhibits Qd2.} (27. Qc2 $17) 27... Rb4 $19 {[%emt 0:02:16]} 28.
Qc5 {[%emt 0:01:39]} Qa3 {[%emt 0:01:36][%csl Gb4][%cal Ra3b2]} 29. Rf2 {
[%emt 0:02:20]} Rfb8 {[%emt 0:00:46][%cal Rb4b2]} 30. Ree2 {[%emt 0:00:22]}
Qd3+ {[%emt 0:00:59]} 31. Kc1 {[%emt 0:02:30]} Rc4+ {[%emt 0:00:21]} (31... Ra4
$142 32. Nf6+ gxf6 33. Qa5 Rxa5 34. b4 Qc3+ 35. Rc2 Ra1#) 32. Qxc4 {[%emt 0:00:
23] Black is clearly winning.} Qxc4+ {[%emt 0:00:05]} 33. Rc2 {[%emt 0:00:05]}
Qxd4 {[%emt 0:00:31]} 34. Nd6 {[%emt 0:00:10]} Qxe5 {[%emt 0:00:39] Black used
his chance. Weighted Error Value: White=0.73/Black=0.29 (precise)} 0-1

[Event "44th Chess Olympiad Women 2022"]
[Site "Chennai"]
[Date "2022.08.03"]
[Round "6.15"]
[White "Vidic, Teja"]
[Black "Ivekovic, Tihana"]
[Result "1-0"]
[WhiteElo "2099"]
[BlackElo "2082"]
[Annotator "NA RC"]
[PlyCount "86"]
[EventDate "2022.??.??"]
[TimeControl "60"]

1. e4 {[%emt 0:00:03]} e6 {[%emt 0:00:04]} 2. d4 {[%emt 0:00:09]} d5 {[%emt 0:
00:00]} 3. Nc3 {[%emt 0:00:05]} Bb4 {[%emt 0:00:04]} 4. e5 {[%emt 0:00:08]} c5
{[%emt 0:00:05]} 5. a3 {[%emt 0:00:15]} Bxc3+ {[%emt 0:00:05]} 6. bxc3 {
[%emt 0:00:05]} Ne7 {[%emt 0:00:04]} 7. Qg4 {[%emt 0:00:13]} Qc7 {[%emt 0:00:
00]} 8. Qxg7 {[%emt 0:00:07]} Rg8 {[%emt 0:00:05]} 9. Qxh7 {[%emt 0:00:07]}
cxd4 {[%emt 0:00:06]} 10. Qd3 {[%emt 0:00:14]} dxc3 {[%emt 0:00:29]} 11. Ne2 {
[%emt 0:00:22]} Qxe5 {[%emt 0:05:41]} 12. Qxc3 {[%emt 0:00:06]} Nbc6 {[%emt 0:
00:00]} 13. Qxe5 {[%emt 0:00:17]} Nxe5 {[%emt 0:00:05]} 14. Bb2 {[%emt 0:00:08]
} Nc4 {[%emt 0:01:38]} 15. Bc3 {[%emt 0:03:11]} Bd7 {[%emt 0:01:04]} 16. Ng3 {
[%emt 0:03:20]} O-O-O {[%emt 0:04:08]} 17. h4 {[%emt 0:04:56]} Ba4 {[%emt 0:00:
00]} 18. Bf6 {[%emt 0:07:40]} Rd7 {[%emt 0:01:07]} 19. Bd3 {[%emt 0:00:09]} Nd6
{[%emt 0:00:54]} 20. h5 {[%emt 0:07:14]} Ne8 {[%emt 0:01:25]} 21. Bb2 {[%emt 0:
00:00]} f6 {[%emt 0:06:36]} 22. O-O-O {[%emt 0:07:49]} Rc7 {[%emt 0:00:11]} 23.
Rh4 {[%emt 0:04:00]} Bd7 {[%emt 0:00:35]} 24. h6 {[%emt 0:05:12]} e5 {[%emt 0:
00:00]} 25. h7 {[%emt 0:00:30]} Rh8 {[%emt 0:00:05]} 26. Rdh1 {[%emt 0:03:44]}
e4 {[%emt 0:03:43]} 27. Be2 {[%emt 0:06:59]} Nf5 {[%emt 0:06:56]} 28. Rf4 {
[%emt 0:01:26]} Nxg3 {[%emt 0:01:08]} 29. fxg3 {[%emt 0:00:07]} Be6 {[%emt 0:
00:00]} 30. Bb5 {[%emt 0:10:53]} Bd7 {[%emt 0:10:09]} 31. Bxd7+ {[%emt 0:08:34]
} Rxd7 {[%emt 0:00:25]} 32. Rfh4 {[%emt 0:00:05]} Rg7 {[%emt 0:00:22]} 33. Rh6
{[%emt 0:03:04]} Kd7 {[%emt 0:00:31]} 34. g4 {[%emt 0:04:20]} Ke6 {[%emt 0:00:
00]} 35. R1h5 {[%emt 0:03:25]} Kf7 {[%emt 0:10:35]} 36. g5 {[%emt 0:09:05]} Rg6
{[%emt 0:00:29]} 37. g4 {[%emt 0:03:03]} a6 {[%emt 0:08:08]} 38. Kd2 {[%emt 0:
00:00]} Rxh6 {[%emt 0:02:53]} 39. Rxh6 {[%emt 0:00:05]} Kg7 {[%emt 0:00:16]}
40. Rh5 {[%emt 0:00:39]} e3+ {[%emt 0:01:39]} 41. Kxe3 {[%emt 0:31:12]} Kg6 {
[%emt 0:30:05]} 42. gxf6 {[%emt 0:01:49]} Nxf6 {[%emt 0:00:14]} 43. Bxf6 {
[%emt 0:01:20]} Kxf6 {[%emt 0:00:05]} 1-0

[Event "44th Chess Olympiad Women 2022"]
[Site "Chennai"]
[Date "2022.08.03"]
[Round "6.16"]
[White "Elansary, Eman"]
[Black "Makka, Ioulia"]
[Result "0-1"]
[WhiteElo "1936"]
[BlackElo "1975"]
[Annotator "NA RC"]
[PlyCount "124"]
[EventDate "2022.??.??"]
[TimeControl "60"]

1. d4 {[%emt 0:00:06]} Nf6 {[%emt 0:00:05]} 2. Bg5 {[%emt 0:00:08]} e6 {
[%emt 0:03:22]} 3. e4 {[%emt 0:00:17]} h6 {[%emt 0:01:22]} 4. Bxf6 {[%emt 0:00:
00]} Qxf6 {[%emt 0:00:04]} 5. c3 {[%emt 0:00:15]} d5 {[%emt 0:10:38]} 6. Nd2 {
[%emt 0:00:42]} dxe4 {[%emt 0:15:49]} 7. Nxe4 {[%emt 0:04:01]} Qd8 {[%emt 0:00:
00]} 8. Nf3 {[%emt 0:00:49]} Be7 {[%emt 0:10:26]} 9. Bd3 {[%emt 0:01:12]} Nd7 {
[%emt 0:00:57]} 10. Qe2 {[%emt 0:03:20]} a6 {[%emt 0:05:47]} 11. Rd1 {[%emt 0:
00:00]} O-O {[%emt 0:01:04]} 12. O-O {[%emt 0:00:14]} Re8 {[%emt 0:02:50]} 13.
Bb1 {[%emt 0:05:37]} Nf8 {[%emt 0:09:03]} 14. Rfe1 {[%emt 0:04:53]} c6 {
[%emt 0:04:53]} 15. Ne5 {[%emt 0:02:56]} f6 {[%emt 0:05:27]} 16. Nc4 {[%emt 0:
00:00]} Qc7 {[%emt 0:04:44]} 17. Qh5 {[%emt 0:01:53]} Rd8 {[%emt 0:01:13]} 18.
Ne3 {[%emt 0:04:55]} f5 {[%emt 0:02:32]} 19. Nc5 {[%emt 0:02:03]} b6 {[%emt 0:
00:00]} 20. Nd3 {[%emt 0:00:33]} Bf6 {[%emt 0:01:17]} 21. Nc4 {[%emt 0:01:30]}
Bd7 {[%emt 0:02:23]} 22. Qe2 {[%emt 0:04:28]} Ra7 {[%emt 0:01:22]} 23. Nce5 {
[%emt 0:01:46]} Be8 {[%emt 0:00:44]} 24. a3 {[%emt 0:00:23]} Qd6 {[%emt 0:00:
00]} 25. Ba2 {[%emt 0:00:56]} Re7 {[%emt 0:00:20]} 26. f4 {[%emt 0:04:50]} Kh7
{[%emt 0:01:11]} 27. Qf3 {[%emt 0:03:02]} Rc8 {[%emt 0:01:05]} 28. g4 {[%emt 0:
00:00]} g6 {[%emt 0:00:17]} 29. Qh3 {[%emt 0:17:11]} Bg7 {[%emt 0:01:02]} 30.
Re2 {[%emt 0:00:17]} c5 {[%emt 0:01:10]} 31. dxc5 {[%emt 0:01:41]} bxc5 {
[%emt 0:00:15]} 32. Red2 {[%emt 0:04:33]} Qb8 {[%emt 0:01:21]} 33. Qe3 {
[%emt 0:07:02]} Qc7 {[%emt 0:01:36]} 34. g5 {[%emt 0:02:39]} hxg5 {[%emt 0:00:
00]} 35. fxg5 {[%emt 0:01:36]} Bb5 {[%emt 0:00:42]} 36. Bc4 {[%emt 0:05:00]}
Bxc4 {[%emt 0:01:19]} 37. Nxc4 {[%emt 0:00:02]} e5 {[%emt 0:00:50]} 38. Nf2 {
[%emt 0:00:46]} e4 {[%emt 0:00:49]} 39. Rd6 {[%emt 0:01:40]} Re6 {[%emt 0:00:
00]} 40. Qf4 {[%emt 0:01:59]} Qe7 {[%emt 0:00:47]} 41. Qh4+ {[%emt 0:18:02]}
Kg8 {[%emt 0:00:17]} 42. Nh3 {[%emt 0:00:37]} Rxd6 {[%emt 0:14:56]} 43. Rxd6 {
[%emt 0:01:40]} Rd8 {[%emt 0:08:23]} 44. Qf4 {[%emt 0:01:36]} Be5 {[%emt 0:00:
00]} 45. Qxe5 {[%emt 0:06:50]} Qxe5 {[%emt 0:00:13]} 46. Nxe5 {[%emt 0:00:03]}
Rxd6 {[%emt 0:00:15]} 47. Nf4 {[%emt 0:01:23]} Rd1+ {[%emt 0:02:53]} 48. Kf2 {
[%emt 0:00:15]} Rd2+ {[%emt 0:00:59]} 49. Kg3 {[%emt 0:01:13]} Rxb2 {[%emt 0:
00:00]} 50. h4 {[%emt 0:01:27]} Rb3 {[%emt 0:01:29]} 51. Nd5 {[%emt 0:00:13]}
Rxa3 {[%emt 0:00:47]} 52. Nc4 {[%emt 0:00:51]} Ra1 {[%emt 0:01:11]} 53. Kf4 {
[%emt 0:01:53]} Nd7 {[%emt 0:00:33]} 54. h5 {[%emt 0:01:16]} Rf1+ {[%emt 0:00:
00]} 55. Kg3 {[%emt 0:00:05]} gxh5 {[%emt 0:00:27]} 56. Nce3 {[%emt 0:00:53]}
Rf3+ {[%emt 0:00:42]} 57. Kh4 {[%emt 0:00:16]} f4 {[%emt 0:00:23]} 58. Nf5 {
[%emt 0:00:21]} Kf7 {[%emt 0:00:34]} 59. Kxh5 {[%emt 0:00:49]} Ke6 {[%emt 0:00:
00]} 60. Nde7 {[%emt 0:00:42]} Ne5 {[%emt 0:00:36]} 61. Kh4 {[%emt 0:00:35]}
Rf1 {[%emt 0:00:32]} 62. Kh3 {[%emt 0:00:36]} e3 {[%emt 0:01:13]} 0-1